[Event "*** Titled Tuesday Blitz"]
[Site "Chess.com"]
[Date "2020.01.07"]
[Round "8"]
[White "otrov-11"]
[Black "shanemelaughcm"]
[Result "1-0"]
[WhiteElo "2422"]
[BlackElo "2282"]
[TimeControl "180+2"]
[EndTime "14:58:58 PST"]
[Termination "otrov-11 won by resignation"]

1. d4 {[%clk 0:03:01.9]} 1... e6 {[%clk 0:03:00]} 2. e4 {[%clk 0:03:02.1]} 2...
c5 {[%clk 0:03:00.9]} 3. d5 {[%clk 0:03:02.5]} 3... exd5 {[%clk 0:03:02.5]} 4.
exd5 {[%clk 0:03:03.5]} 4... d6 {[%clk 0:03:04.3]} 5. Nc3 {[%clk 0:03:02.4]}
5... Be7 {[%clk 0:03:03.9]} 6. Bb5+ {[%clk 0:03:03.6]} 6... Bd7 {[%clk
0:03:04.7]} 7. a4 {[%clk 0:03:05.3]} 7... Nf6 {[%clk 0:03:05.3]} 8. Nf3 {[%clk
0:03:05.3]} 8... O-O {[%clk 0:03:06.4]} 9. O-O {[%clk 0:03:06.5]} 9... a6 {[%clk
0:03:06.5]} 10. Bd3 {[%clk 0:03:02.2]} 10... b6 {[%clk 0:03:07.6]} 11. h3 {[%clk
0:03:01]} 11... Qc8 {[%clk 0:03:07.3]} 12. Bf4 {[%clk 0:03:00.4]} 12... Bf5
{[%clk 0:03:05.9]} 13. Re1 {[%clk 0:03:00.2]} 13... Re8 {[%clk 0:03:03.1]} 14.
Qd2 {[%clk 0:02:39.6]} 14... Bxd3 {[%clk 0:02:51.4]} 15. Qxd3 {[%clk 0:02:41.5]}
15... Nbd7 {[%clk 0:02:50.2]} 16. Ng5 {[%clk 0:02:20.7]} 16... Nf8 {[%clk
0:02:13.6]} 17. Re2 {[%clk 0:02:10.6]} 17... Ng6 {[%clk 0:02:14.1]} 18. Bh2
{[%clk 0:02:06.1]} 18... Bf8 {[%clk 0:02:14.8]} 19. Rae1 {[%clk 0:02:05.5]}
19... Qb7 {[%clk 0:02:11.5]} 20. Qf5 {[%clk 0:01:51.2]} 20... h6 {[%clk
0:01:33]} 21. Nge4 {[%clk 0:01:49.6]} 21... Nxe4 {[%clk 0:01:29.6]} 22. Nxe4
{[%clk 0:01:51.5]} 22... Rad8 {[%clk 0:01:19.8]} 23. Nf6+ {[%clk 0:01:47.9]}
23... gxf6 {[%clk 0:01:21.1]} 24. Rxe8 {[%clk 0:01:48.4]} 24... Rxe8 {[%clk
0:01:19.9]} 25. Rxe8 {[%clk 0:01:50.3]} 25... Kg7 {[%clk 0:01:21.4]} 26. Bf4
{[%clk 0:01:14.8]} 26... b5 {[%clk 0:00:47.2]} 27. h4 {[%clk 0:01:08.9]} 27...
h5 {[%clk 0:00:35.5]} 28. Qxh5 {[%clk 0:01:01.4]} 28... Nxf4 {[%clk 0:00:34.5]}
29. Qg4+ {[%clk 0:01:00.7]} 29... Ng6 {[%clk 0:00:29.5]} 30. h5 {[%clk
0:01:01.5]} 30... Qxd5 {[%clk 0:00:30.3]} 31. hxg6 {[%clk 0:01:01.4]} 31... fxg6
{[%clk 0:00:31]} 32. Qd7+ {[%clk 0:00:59.6]} 32... Qf7 {[%clk 0:00:23.2]} 33.
Qxf7+ {[%clk 0:00:58.4]} 33... Kxf7 {[%clk 0:00:25.1]} 34. Ra8 {[%clk
0:00:59.3]} 34... bxa4 {[%clk 0:00:26.5]} 35. Rxa6 {[%clk 0:01:00.2]} 35... Ke6
{[%clk 0:00:26.5]} 36. Rxa4 {[%clk 0:01:00.8]} 36... f5 {[%clk 0:00:20.6]} 37.
c4 {[%clk 0:01:00]} 37... Bg7 {[%clk 0:00:21]} 38. b3 {[%clk 0:01:00.5]} 38...
Be5 {[%clk 0:00:20.2]} 39. Kf1 {[%clk 0:00:58.4]} 39... g5 {[%clk 0:00:21.4]}
40. Ke2 {[%clk 0:00:59.1]} 40... Bd4 {[%clk 0:00:22.8]} 41. f3 {[%clk
0:00:59.2]} 41... Ke5 {[%clk 0:00:24.1]} 42. Ra6 {[%clk 0:00:53.7]} 42... Bc3
{[%clk 0:00:24.5]} 43. Kd3 {[%clk 0:00:53.9]} 43... Bd4 {[%clk 0:00:24.9]} 44.
Ra8 {[%clk 0:00:49.2]} 44... Kf4 {[%clk 0:00:25.5]} 45. Rd8 {[%clk 0:00:48.7]}
45... Be5 {[%clk 0:00:26.7]} 46. Ke2 {[%clk 0:00:48.8]} 46... Kg3 {[%clk
0:00:27.4]} 47. Kf1 {[%clk 0:00:50.1]} 47... Kf4 {[%clk 0:00:28.5]} 48. Kf2
{[%clk 0:00:49.3]} 48... Bd4+ {[%clk 0:00:24]} 49. Ke2 {[%clk 0:00:50.4]} 49...
Be5 {[%clk 0:00:25]} 50. Rg8 {[%clk 0:00:47.5]} 50... g4 {[%clk 0:00:25.5]} 51.
fxg4 {[%clk 0:00:44.8]} 51... fxg4 {[%clk 0:00:27.4]} 52. Kf2 {[%clk 0:00:38.5]}
52... Bd4+ {[%clk 0:00:28.2]} 53. Ke2 {[%clk 0:00:39.3]} 53... Be5 {[%clk
0:00:29.6]} 54. Rb8 {[%clk 0:00:32.7]} 54... Kg3 {[%clk 0:00:28.7]} 55. Kf1
{[%clk 0:00:33.7]} 55... Kf4 {[%clk 0:00:28.4]} 56. Kf2 {[%clk 0:00:30]} 56...
Bd4+ {[%clk 0:00:29.4]} 57. Ke2 {[%clk 0:00:31.4]} 57... Be5 {[%clk 0:00:24.7]}
58. b4 {[%clk 0:00:26.5]} 58... cxb4 {[%clk 0:00:23.7]} 59. Rxb4 {[%clk
0:00:28.4]} 59... Kg3 {[%clk 0:00:24.1]} 60. Kf1 {[%clk 0:00:27.6]} 60... Bd4
{[%clk 0:00:25.4]} 61. Rb3+ {[%clk 0:00:24.3]} 61... Kf4 {[%clk 0:00:25]} 62.
Ke2 {[%clk 0:00:24.5]} 62... Bc5 {[%clk 0:00:25.5]} 63. Rd3 {[%clk 0:00:20.6]}
63... Bb4 {[%clk 0:00:18.3]} 64. Rd5 {[%clk 0:00:20.5]} 64... Bc5 {[%clk
0:00:19.4]} 65. Rd3 {[%clk 0:00:16.9]} 65... Bb4 {[%clk 0:00:12.9]} 66. Rb3
{[%clk 0:00:17.5]} 66... Bc5 {[%clk 0:00:14.2]} 67. Kd3 {[%clk 0:00:18.2]} 67...
Kg3 {[%clk 0:00:15.2]} 68. Rb2 {[%clk 0:00:18.4]} 68... Kh2 {[%clk 0:00:15.7]}
69. Ke4 {[%clk 0:00:17.4]} 69... Kg3 {[%clk 0:00:15.6]} 70. Kf5 {[%clk
0:00:17.1]} 70... Bd4 {[%clk 0:00:13.2]} 71. Rd2 {[%clk 0:00:17.7]} 71... Bc5
{[%clk 0:00:13.6]} 72. Rd3+ {[%clk 0:00:18.7]} 72... Kh4 {[%clk 0:00:11.4]} 73.
Rd1 {[%clk 0:00:14.2]} 73... Kg3 {[%clk 0:00:12.2]} 74. Rd2 {[%clk 0:00:12.9]}
74... Bb4 {[%clk 0:00:08.8]} 75. Re2 {[%clk 0:00:13.7]} 75... Bc5 {[%clk
0:00:09.8]} 76. Re4 {[%clk 0:00:13.9]} 76... Kxg2 {[%clk 0:00:09.8]} 77. Kxg4
{[%clk 0:00:15]} 77... Kf2 {[%clk 0:00:11]} 78. Kf5 {[%clk 0:00:16.1]} 78... Kf3
{[%clk 0:00:11.6]} 79. Rh4 {[%clk 0:00:16.7]} 79... Ke3 {[%clk 0:00:12.8]} 80.
Ke6 {[%clk 0:00:17]} 80... Kd3 {[%clk 0:00:14]} 81. Kd5 {[%clk 0:00:18]} 81...
Kc3 {[%clk 0:00:14.6]} 82. Rh1 {[%clk 0:00:17.1]} 82... Kb4 {[%clk 0:00:15.9]}
83. Rb1+ {[%clk 0:00:17.5]} 83... Ka5 {[%clk 0:00:13.3]} 84. Rb5+ {[%clk
0:00:19.4]} 84... Ka6 {[%clk 0:00:14.8]} 85. Rxc5 {[%clk 0:00:19.2]} 85... dxc5
{[%clk 0:00:16.7]} 86. Kxc5 {[%clk 0:00:21.1]} 86... Kb7 {[%clk 0:00:17.4]} 87.
Kd6 {[%clk 0:00:21.9]} 87... Kc8 {[%clk 0:00:18.7]} 88. Kc6 {[%clk 0:00:23.1]}
88... Kb8 {[%clk 0:00:18.8]} 89. Kd7 {[%clk 0:00:23.9]} 89... Kb7 {[%clk
0:00:20.5]} 90. c5 {[%clk 0:00:24.8]} 90... Ka6 {[%clk 0:00:22]} 91. c6 {[%clk
0:00:26.1]} 91... Kb5 {[%clk 0:00:23.7]} 92. c7 {[%clk 0:00:27.3]} 92... Kc5
{[%clk 0:00:25.6]} 93. c8=Q+ {[%clk 0:00:28.6]} 93... Kd5 {[%clk 0:00:27.5]} 94.
Qc6+ {[%clk 0:00:29.6]} 94... Ke5 {[%clk 0:00:29.4]} 95. Qd6+ {[%clk 0:00:30.5]}
95... Kf5 {[%clk 0:00:30.7]} 96. Qe6+ {[%clk 0:00:31]} 96... Kg5 {[%clk
0:00:31.7]} 97. Ke7 {[%clk 0:00:32]} 97... Kh5 {[%clk 0:00:32.5]} 98. Qg8 {[%clk
0:00:32.1]} 98... Kh4 {[%clk 0:00:33.3]} 99. Kf6 {[%clk 0:00:33.2]} 99... Kh3
{[%clk 0:00:34.5]} 100. Kf5 {[%clk 0:00:34.1]} 1-0

[Event "*** Titled Tuesday Blitz"]
[Site "Chess.com"]
[Date "2020.01.07"]
[Round "9"]
[White "NTBT_DHS"]
[Black "Incognito_Knight"]
[Result "1-0"]
[WhiteElo "2641"]
[BlackElo "2739"]
[TimeControl "180+2"]
[EndTime "15:01:04 PST"]
[Termination "NTBT_DHS won by resignation"]

1. e4 {[%clk 0:03:01.8]} 1... e5 {[%clk 0:02:58.1]} 2. Nf3 {[%clk 0:03:02.6]}
2... Nc6 {[%clk 0:02:59.5]} 3. Bc4 {[%clk 0:03:03.5]} 3... Bc5 {[%clk
0:03:00.2]} 4. d4 {[%clk 0:03:04.6]} 4... Bxd4 {[%clk 0:02:58.8]} 5. Nxd4 {[%clk
0:03:05.7]} 5... Nxd4 {[%clk 0:02:59.7]} 6. O-O {[%clk 0:03:06.8]} 6... Nf6
{[%clk 0:02:58.1]} 7. Bg5 {[%clk 0:03:07.5]} 7... d6 {[%clk 0:02:49.1]} 8. f4
{[%clk 0:03:08.1]} 8... exf4 {[%clk 0:02:46.9]} 9. Qxd4 {[%clk 0:03:06.7]} 9...
Be6 {[%clk 0:02:29.4]} 10. Rxf4 {[%clk 0:03:01.2]} 10... Bxc4 {[%clk 0:02:27.1]}
11. Qxc4 {[%clk 0:03:03.1]} 11... Qe7 {[%clk 0:02:28.7]} 12. Bxf6 {[%clk
0:03:02.2]} 12... gxf6 {[%clk 0:02:30.6]} 13. Nc3 {[%clk 0:03:00.9]} 13... c6
{[%clk 0:02:32.1]} 14. Raf1 {[%clk 0:03:01.2]} 14... O-O-O {[%clk 0:02:29.7]}
15. Rxf6 {[%clk 0:03:01.4]} 15... Rhg8 {[%clk 0:02:31.4]} 16. Qxf7 {[%clk
0:03:01.2]} 16... Qe5 {[%clk 0:02:31.3]} 17. Qe6+ {[%clk 0:03:01.7]} 1-0

[Event "*** Titled Tuesday Blitz"]
[Site "Chess.com"]
[Date "2020.01.07"]
[Round "9"]
[White "Hadza_3"]
[Black "ShahMatKanal"]
[Result "1/2-1/2"]
[WhiteElo "2405"]
[BlackElo "2539"]
[TimeControl "180+2"]
[EndTime "15:01:32 PST"]
[Termination "Game drawn by agreement"]

1. e4 {[%clk 0:03:01.9]} 1... c5 {[%clk 0:03:00.3]} 2. Nc3 {[%clk 0:02:57]} 2...
Nc6 {[%clk 0:03:00.3]} 3. Bc4 {[%clk 0:02:55.5]} 3... e5 {[%clk 0:03:00.3]} 4.
d3 {[%clk 0:02:56.2]} 4... d6 {[%clk 0:03:00.2]} 5. f4 {[%clk 0:02:57]} 5...
exf4 {[%clk 0:03:01]} 6. Bxf4 {[%clk 0:02:55.4]} 6... Nge7 {[%clk 0:03:00.4]} 7.
Nf3 {[%clk 0:02:55.5]} 7... Ng6 {[%clk 0:03:00.5]} 8. Bg3 {[%clk 0:02:49.9]}
8... Be7 {[%clk 0:02:54.3]} 9. O-O {[%clk 0:02:50.4]} 9... O-O {[%clk
0:02:53.1]} 10. Nd5 {[%clk 0:02:42.2]} 10... Be6 {[%clk 0:02:51.2]} 11. Nxe7+
{[%clk 0:02:39.4]} 11... Qxe7 {[%clk 0:02:49.1]} 12. Bb3 {[%clk 0:02:38.5]}
12... Nge5 {[%clk 0:02:41]} 1/2-1/2

[Event "*** Titled Tuesday Blitz"]
[Site "Chess.com"]
[Date "2020.01.07"]
[Round "9"]
[White "Eliwood44"]
[Black "karwowskikacper"]
[Result "1-0"]
[WhiteElo "2363"]
[BlackElo "2425"]
[TimeControl "180+2"]
[EndTime "15:01:34 PST"]
[Termination "Eliwood44 won by resignation"]

1. Nf3 {[%clk 0:03:01.9]} 1... Nf6 {[%clk 0:02:54.3]} 2. e3 {[%clk 0:03:02.6]}
2... b6 {[%clk 0:02:52.1]} 3. d4 {[%clk 0:03:02.7]} 3... Bb7 {[%clk 0:02:53.3]}
4. Bd3 {[%clk 0:03:04.3]} 4... g6 {[%clk 0:02:52.5]} 5. O-O {[%clk 0:03:05.2]}
5... Bg7 {[%clk 0:02:54]} 6. c4 {[%clk 0:03:06.5]} 6... O-O {[%clk 0:02:55.2]}
7. Nc3 {[%clk 0:03:08]} 7... d6 {[%clk 0:02:54.8]} 8. e4 {[%clk 0:03:03.3]} 8...
Nbd7 {[%clk 0:02:55.2]} 9. h3 {[%clk 0:02:59]} 9... e5 {[%clk 0:02:55.5]} 10. d5
{[%clk 0:03:00]} 10... a5 {[%clk 0:02:56.4]} 11. b3 {[%clk 0:03:00.2]} 11... Qe7
{[%clk 0:02:55.8]} 12. a3 {[%clk 0:02:59.8]} 12... Nh5 {[%clk 0:02:52.1]} 13.
Bg5 {[%clk 0:02:57.3]} 13... f6 {[%clk 0:02:50.6]} 14. Be3 {[%clk 0:02:58.2]}
14... Nf4 {[%clk 0:02:51]} 15. Qd2 {[%clk 0:02:57.5]} 15... f5 {[%clk
0:02:43.6]} 16. Bxf4 {[%clk 0:02:57.9]} 16... exf4 {[%clk 0:02:44.3]} 17. exf5
{[%clk 0:02:59.1]} 17... Nc5 {[%clk 0:02:18.3]} 18. Rae1 {[%clk 0:02:58.2]}
18... Qf6 {[%clk 0:02:15.4]} 19. Ne4 {[%clk 0:02:59]} 19... Qxf5 {[%clk
0:02:16]} 20. Nxc5 {[%clk 0:02:59.4]} 1-0

[Event "*** Titled Tuesday Blitz"]
[Site "Chess.com"]
[Date "2020.01.07"]
[Round "9"]
[White "HrvojeZagreb"]
[Black "Mikasinski"]
[Result "1-0"]
[WhiteElo "2232"]
[BlackElo "2281"]
[TimeControl "180+2"]
[EndTime "15:03:28 PST"]
[Termination "HrvojeZagreb won by resignation"]

1. d4 {[%clk 0:03:01.9]} 1... Nf6 {[%clk 0:02:59.8]} 2. Bf4 {[%clk 0:03:00.7]}
2... g6 {[%clk 0:03:00.8]} 3. Nc3 {[%clk 0:03:00.7]} 3... Bg7 {[%clk 0:03:02.3]}
4. e4 {[%clk 0:03:01.9]} 4... O-O {[%clk 0:03:03.5]} 5. Qd2 {[%clk 0:03:03.2]}
5... d6 {[%clk 0:03:04.3]} 6. O-O-O {[%clk 0:03:03.5]} 6... b6 {[%clk
0:03:00.7]} 7. Bh6 {[%clk 0:03:03.7]} 7... Bb7 {[%clk 0:03:01]} 8. f3 {[%clk
0:02:58.2]} 8... Nbd7 {[%clk 0:03:01.3]} 9. h4 {[%clk 0:02:57.9]} 9... e5 {[%clk
0:02:59.4]} 10. Nge2 {[%clk 0:02:57.2]} 10... exd4 {[%clk 0:02:59]} 11. Nxd4
{[%clk 0:02:59.1]} 11... Qe7 {[%clk 0:02:59.7]} 12. h5 {[%clk 0:02:59.5]} 12...
a6 {[%clk 0:02:28.1]} 13. Bxg7 {[%clk 0:02:57.1]} 13... Kxg7 {[%clk 0:02:27.2]}
14. hxg6 {[%clk 0:02:58.6]} 14... fxg6 {[%clk 0:02:27]} 15. Bc4 {[%clk
0:02:47.6]} 15... Kh8 {[%clk 0:02:10.7]} 16. Ne6 {[%clk 0:02:32.8]} 16... Rfc8
{[%clk 0:02:08.9]} 17. Ng5 {[%clk 0:02:31]} 17... Ne5 {[%clk 0:02:07.5]} 18. Bb3
{[%clk 0:02:29.3]} 18... b5 {[%clk 0:01:52.8]} 19. f4 {[%clk 0:02:29.3]} 19...
Nc4 {[%clk 0:01:51.1]} 20. Bxc4 {[%clk 0:02:29.9]} 20... bxc4 {[%clk 0:01:52.7]}
21. Qd4 {[%clk 0:02:22.1]} 21... h5 {[%clk 0:01:43.6]} 22. g4 {[%clk 0:02:03.2]}
22... c5 {[%clk 0:01:40.6]} 23. Qxd6 {[%clk 0:02:03.7]} 23... Qxd6 {[%clk
0:01:41.1]} 24. Rxd6 {[%clk 0:02:05.6]} 24... Nxg4 {[%clk 0:01:38.8]} 25. Rxg6
{[%clk 0:02:06.3]} 1-0

[Event "*** Titled Tuesday Blitz"]
[Site "Chess.com"]
[Date "2020.01.07"]
[Round "9"]
[White "lupta_robin"]
[Black "Er_is_geen_hoop_meer"]
[Result "0-1"]
[WhiteElo "2526"]
[BlackElo "2462"]
[TimeControl "180+2"]
[EndTime "15:04:01 PST"]
[Termination "Er_is_geen_hoop_meer won by resignation"]

1. b3 {[%clk 0:03:01.9]} 1... h5 {[%clk 0:02:59.3]} 2. Bb2 {[%clk 0:03:01.1]}
2... h4 {[%clk 0:03:00.6]} 3. e4 {[%clk 0:03:01.1]} 3... a5 {[%clk 0:02:59.8]}
4. a4 {[%clk 0:02:58.6]} 4... Na6 {[%clk 0:02:59]} 5. d4 {[%clk 0:02:57.8]} 5...
d5 {[%clk 0:02:59.7]} 6. exd5 {[%clk 0:02:58]} 6... Qxd5 {[%clk 0:03:01.6]} 7.
Nc3 {[%clk 0:02:59.4]} 7... Qe6+ {[%clk 0:03:02.1]} 8. Nge2 {[%clk 0:02:55.8]}
8... h3 {[%clk 0:03:02.8]} 9. g3 {[%clk 0:02:53.2]} 9... Nb4 {[%clk 0:03:03.9]}
10. Qd2 {[%clk 0:02:46.1]} 10... Qc6 {[%clk 0:03:04]} 11. d5 {[%clk 0:02:39.4]}
11... Qg6 {[%clk 0:03:05]} 12. O-O-O {[%clk 0:02:36.1]} 12... Bf5 {[%clk
0:03:05.8]} 13. Nd4 {[%clk 0:02:34.5]} 13... Nf6 {[%clk 0:03:02.8]} 14. Bb5+
{[%clk 0:02:26.6]} 14... Kd8 {[%clk 0:02:59]} 15. Qf4 {[%clk 0:02:09.4]} 15...
Bxc2 {[%clk 0:02:50.4]} 16. Ne6+ {[%clk 0:02:05.1]} 16... fxe6 {[%clk
0:02:43.4]} 17. dxe6+ {[%clk 0:02:03.6]} 17... Bxd1 {[%clk 0:02:39.8]} 18. Rxd1+
{[%clk 0:02:02.7]} 18... Kc8 {[%clk 0:02:41.3]} 19. Bd7+ {[%clk 0:01:43.1]}
19... Kb8 {[%clk 0:02:41.5]} 20. Qxc7+ {[%clk 0:01:43.5]} 20... Kxc7 {[%clk
0:02:38.9]} 21. Nb5+ {[%clk 0:01:44.6]} 21... Kd8 {[%clk 0:02:36.5]} 22. Be8+
{[%clk 0:01:33.1]} 22... Nd3+ {[%clk 0:02:31.8]} 23. Kc2 {[%clk 0:01:25.5]}
23... Rc8+ {[%clk 0:02:30.9]} 24. Bc3 {[%clk 0:01:26.6]} 24... Kxe8 {[%clk
0:02:28.4]} 25. Rxd3 {[%clk 0:01:26.3]} 25... Ng4 {[%clk 0:02:29]} 26. Kd2
{[%clk 0:01:21.4]} 26... Nxh2 {[%clk 0:02:29.8]} 27. Bxa5 {[%clk 0:01:21.5]}
27... Nf1+ {[%clk 0:02:29.1]} 28. Ke2 {[%clk 0:01:20]} 28... Rc2+ {[%clk
0:02:30.2]} 29. Ke1 {[%clk 0:01:18]} 29... Qe4+ {[%clk 0:02:30.5]} 30. Re3
{[%clk 0:01:17.9]} 30... Rc1+ {[%clk 0:02:31.7]} 31. Ke2 {[%clk 0:01:16.7]}
31... Qc2+ {[%clk 0:02:33.2]} 32. Kf3 {[%clk 0:01:17]} 32... Nh2+ {[%clk
0:02:34.7]} 33. Kf4 {[%clk 0:01:16.7]} 33... g5+ {[%clk 0:02:33]} 0-1

[Event "*** Titled Tuesday Blitz"]
[Site "Chess.com"]
[Date "2020.01.07"]
[Round "9"]
[White "Keaton87"]
[Black "Gogolev_Artemy"]
[Result "1-0"]
[WhiteElo "2621"]
[BlackElo "2467"]
[TimeControl "180+2"]
[EndTime "15:04:07 PST"]
[Termination "Keaton87 won by resignation"]

1. d4 {[%clk 0:03:01.9]} 1... Nf6 {[%clk 0:03:00.2]} 2. Bg5 {[%clk 0:03:03.8]}
2... g6 {[%clk 0:03:00.4]} 3. Bxf6 {[%clk 0:03:04.1]} 3... exf6 {[%clk
0:03:01.5]} 4. e3 {[%clk 0:03:04.7]} 4... c5 {[%clk 0:03:02.8]} 5. Ne2 {[%clk
0:02:59.9]} 5... d5 {[%clk 0:03:03.9]} 6. g3 {[%clk 0:02:59.5]} 6... Nc6 {[%clk
0:03:05.3]} 7. Bg2 {[%clk 0:02:58.4]} 7... Be6 {[%clk 0:03:05.2]} 8. O-O {[%clk
0:02:54.6]} 8... Be7 {[%clk 0:02:57.9]} 9. Nbc3 {[%clk 0:02:49.8]} 9... cxd4
{[%clk 0:02:50.6]} 10. exd4 {[%clk 0:02:50.6]} 10... O-O {[%clk 0:02:50.7]} 11.
Nf4 {[%clk 0:02:51.7]} 11... Qd7 {[%clk 0:02:40.3]} 12. Ncxd5 {[%clk 0:02:50.9]}
12... Rad8 {[%clk 0:02:37.2]} 13. Nxe7+ {[%clk 0:02:49.7]} 13... Nxe7 {[%clk
0:02:39.1]} 14. c3 {[%clk 0:02:46.2]} 14... Nd5 {[%clk 0:02:39.8]} 15. Nxd5
{[%clk 0:02:45.2]} 15... Bxd5 {[%clk 0:02:41.7]} 16. Bxd5 {[%clk 0:02:46.3]}
16... Qxd5 {[%clk 0:02:43]} 17. Qb3 {[%clk 0:02:48]} 17... Qf3 {[%clk 0:02:43]}
18. Rae1 {[%clk 0:02:45.7]} 18... Rfe8 {[%clk 0:02:44]} 19. Qd1 {[%clk
0:02:46.5]} 19... Qd5 {[%clk 0:02:44.1]} 20. Qb3 {[%clk 0:02:33.7]} 20... Qf3
{[%clk 0:02:44]} 21. Qa4 {[%clk 0:02:34]} 21... Re2 {[%clk 0:02:38.9]} 22. Rxe2
{[%clk 0:02:23.1]} 22... Qxe2 {[%clk 0:02:38.2]} 23. b3 {[%clk 0:02:13.2]} 23...
a6 {[%clk 0:02:30.4]} 24. Qb4 {[%clk 0:02:10.1]} 24... Qe4 {[%clk 0:02:27.8]}
25. Qc4 {[%clk 0:02:01.3]} 25... h5 {[%clk 0:02:26.8]} 26. h4 {[%clk 0:01:58.7]}
26... f5 {[%clk 0:02:09.6]} 27. Rd1 {[%clk 0:01:58.5]} 27... f4 {[%clk
0:01:59.3]} 28. Qd3 {[%clk 0:01:56.4]} 28... Qe7 {[%clk 0:01:57]} 29. d5 {[%clk
0:01:53.9]} 29... f3 {[%clk 0:01:57.7]} 30. Qxf3 {[%clk 0:01:52.7]} 30... Qc5
{[%clk 0:01:57.9]} 31. c4 {[%clk 0:01:48.9]} 31... b5 {[%clk 0:01:57.6]} 32. Qe3
{[%clk 0:01:48.1]} 32... Qa3 {[%clk 0:01:51.1]} 33. c5 {[%clk 0:01:45.5]} 1-0

[Event "*** Titled Tuesday Blitz"]
[Site "Chess.com"]
[Date "2020.01.07"]
[Round "9"]
[White "Region_07"]
[Black "ristingho"]
[Result "1-0"]
[WhiteElo "2412"]
[BlackElo "2509"]
[TimeControl "180+2"]
[EndTime "15:04:11 PST"]
[Termination "Region_07 won by resignation"]

1. d4 {[%clk 0:03:01.9]} 1... Nf6 {[%clk 0:02:59.1]} 2. Bg5 {[%clk 0:03:02.1]}
2... d5 {[%clk 0:02:59.3]} 3. Nd2 {[%clk 0:03:00.6]} 3... Nbd7 {[%clk 0:03:00]}
4. e3 {[%clk 0:03:01.5]} 4... e6 {[%clk 0:03:01.5]} 5. Bd3 {[%clk 0:03:00.7]}
5... h6 {[%clk 0:03:02.9]} 6. Bh4 {[%clk 0:03:01.3]} 6... c5 {[%clk 0:03:04.5]}
7. c3 {[%clk 0:03:02]} 7... e5 {[%clk 0:03:06.1]} 8. dxe5 {[%clk 0:03:00.7]}
8... Nxe5 {[%clk 0:03:07]} 9. Bb5+ {[%clk 0:03:00.7]} 9... Bd7 {[%clk 0:02:52]}
10. Bxd7+ {[%clk 0:02:58.7]} 10... Nexd7 {[%clk 0:02:53.9]} 11. Ngf3 {[%clk
0:02:58.2]} 11... Be7 {[%clk 0:02:53.7]} 12. O-O {[%clk 0:02:55.1]} 12... O-O
{[%clk 0:02:52.1]} 13. Qc2 {[%clk 0:02:49.5]} 13... Qb6 {[%clk 0:02:50]} 14. e4
{[%clk 0:02:44.8]} 14... dxe4 {[%clk 0:02:42.9]} 15. Nxe4 {[%clk 0:02:45.1]}
15... Rfe8 {[%clk 0:02:44.6]} 16. Nxf6+ {[%clk 0:02:36.6]} 16... Bxf6 {[%clk
0:02:44.3]} 17. Bxf6 {[%clk 0:02:34.4]} 17... Nxf6 {[%clk 0:02:46.2]} 18. Rfe1
{[%clk 0:02:36.1]} 18... g6 {[%clk 0:02:30.6]} 19. h3 {[%clk 0:02:36.7]} 19...
Kg7 {[%clk 0:02:31.4]} 20. Rxe8 {[%clk 0:02:32.7]} 20... Rxe8 {[%clk 0:02:32]}
21. Re1 {[%clk 0:02:34.1]} 21... Rxe1+ {[%clk 0:02:32.4]} 22. Nxe1 {[%clk
0:02:36]} 22... Qa6 {[%clk 0:02:31.3]} 23. a3 {[%clk 0:02:29.2]} 23... b5 {[%clk
0:02:28.8]} 24. Nd3 {[%clk 0:02:26.2]} 24... Qd6 {[%clk 0:02:28.1]} 25. Qe2
{[%clk 0:02:23.1]} 25... c4 {[%clk 0:02:26.5]} 26. Ne5 {[%clk 0:02:15.1]} 26...
Qe6 {[%clk 0:02:18.2]} 27. Qe3 {[%clk 0:02:11.9]} 27... Qd5 {[%clk 0:02:10.2]}
28. Kh2 {[%clk 0:01:55.7]} 28... Qd6 {[%clk 0:02:06.1]} 29. f4 {[%clk
0:01:53.5]} 29... Nd5 {[%clk 0:02:04.9]} 30. Qxa7 {[%clk 0:01:49.4]} 30... Nxf4
{[%clk 0:02:03.5]} 31. Qxf7+ {[%clk 0:01:50]} 31... Kh8 {[%clk 0:02:00.2]} 32.
Qxf4 {[%clk 0:01:50]} 32... g5 {[%clk 0:01:57.6]} 33. Nf7+ {[%clk 0:01:48.2]}
33... Kg7 {[%clk 0:01:57.9]} 34. Qxd6 {[%clk 0:01:49.4]} 1-0

[Event "*** Titled Tuesday Blitz"]
[Site "Chess.com"]
[Date "2020.01.07"]
[Round "9"]
[White "ExploringChess"]
[Black "GadimbayliA"]
[Result "1-0"]
[WhiteElo "2644"]
[BlackElo "2940"]
[TimeControl "180+2"]
[EndTime "15:04:14 PST"]
[Termination "ExploringChess won by resignation"]

1. e4 {[%clk 0:03:01.9]} 1... e5 {[%clk 0:03:00.4]} 2. f4 {[%clk 0:02:57.6]}
2... exf4 {[%clk 0:03:00.1]} 3. Nf3 {[%clk 0:02:57.6]} 3... Ne7 {[%clk
0:03:01.4]} 4. d4 {[%clk 0:02:55.9]} 4... d5 {[%clk 0:03:02.8]} 5. Nc3 {[%clk
0:02:53.4]} 5... dxe4 {[%clk 0:03:03.6]} 6. Nxe4 {[%clk 0:02:52.6]} 6... Nbc6
{[%clk 0:03:04]} 7. Bc4 {[%clk 0:02:45]} 7... Bg4 {[%clk 0:03:02.9]} 8. Bxf7+
{[%clk 0:02:39.2]} 8... Kxf7 {[%clk 0:03:02.5]} 9. Nfg5+ {[%clk 0:02:38.8]} 9...
Ke8 {[%clk 0:03:00.1]} 10. Qxg4 {[%clk 0:02:40.7]} 10... Nxd4 {[%clk 0:02:53.9]}
11. O-O {[%clk 0:02:38.5]} 11... Ng6 {[%clk 0:02:45.2]} 12. Nxh7 {[%clk
0:02:34.7]} 12... Ne5 {[%clk 0:02:41.2]} 13. Qh5+ {[%clk 0:02:32.5]} 13... Nf7
{[%clk 0:02:41.6]} 14. Bxf4 {[%clk 0:02:32.2]} 14... Qe7 {[%clk 0:02:36.3]} 15.
Rae1 {[%clk 0:02:26.2]} 15... Ne6 {[%clk 0:02:25.9]} 16. Bxc7 {[%clk 0:02:17.8]}
16... Qxc7 {[%clk 0:02:17.6]} 17. Neg5 {[%clk 0:02:17.1]} 17... Qc5+ {[%clk
0:00:23.1]} 18. Kh1 {[%clk 0:02:13.3]} 18... Qxg5 {[%clk 0:00:25]} 19. Qxf7+
{[%clk 0:02:04.1]} 1-0

[Event "*** Titled Tuesday Blitz"]
[Site "Chess.com"]
[Date "2020.01.07"]
[Round "9"]
[White "vova-79"]
[Black "Saloni1299"]
[Result "1-0"]
[WhiteElo "2516"]
[BlackElo "2133"]
[TimeControl "180+2"]
[EndTime "15:04:31 PST"]
[Termination "vova-79 won by resignation"]

1. d4 {[%clk 0:03:01.9]} 1... Nf6 {[%clk 0:03:00.1]} 2. c4 {[%clk 0:03:00]} 2...
g6 {[%clk 0:03:00.3]} 3. Nc3 {[%clk 0:02:57.7]} 3... d5 {[%clk 0:03:01.1]} 4.
Nf3 {[%clk 0:02:55.9]} 4... Bg7 {[%clk 0:03:01.5]} 5. Bf4 {[%clk 0:02:56.1]}
5... O-O {[%clk 0:02:49.2]} 6. e3 {[%clk 0:02:56.1]} 6... c5 {[%clk 0:02:50.1]}
7. dxc5 {[%clk 0:02:58]} 7... Qa5 {[%clk 0:02:50.9]} 8. Rc1 {[%clk 0:02:56.9]}
8... dxc4 {[%clk 0:02:50.9]} 9. Bxc4 {[%clk 0:02:56.9]} 9... Qxc5 {[%clk
0:02:51.8]} 10. Bb3 {[%clk 0:02:57.2]} 10... Nc6 {[%clk 0:02:52.4]} 11. O-O
{[%clk 0:02:58.1]} 11... Qa5 {[%clk 0:02:53.4]} 12. h3 {[%clk 0:02:55.8]} 12...
Bf5 {[%clk 0:02:31.9]} 13. Ng5 {[%clk 0:02:54.6]} 13... h6 {[%clk 0:02:28.5]}
14. Nxf7 {[%clk 0:02:52.6]} 14... Rxf7 {[%clk 0:02:25.2]} 15. Bxf7+ {[%clk
0:02:54.5]} 15... Kxf7 {[%clk 0:02:26.4]} 16. Qb3+ {[%clk 0:02:54.6]} 16... Be6
{[%clk 0:02:13.1]} 17. Qxb7 {[%clk 0:02:54]} 17... Rc8 {[%clk 0:02:14.1]} 18.
Nb5 {[%clk 0:02:50.5]} 18... Nd8 {[%clk 0:01:50.2]} 19. Nd6+ {[%clk 0:01:56.1]}
19... Kg8 {[%clk 0:01:39]} 20. Qxe7 {[%clk 0:01:48.8]} 20... Nd5 {[%clk
0:01:25.5]} 21. Qe8+ {[%clk 0:01:15.9]} 1-0